Cogmind - Beta 16.1 @@@ ROGUE MODE // 2026.03.24 @ 16:04:48 Player: Minty Result: Destroyed by D-53 Grenadier with Mini Grenade Launcher Performance ------------- Evolutions (0) 0 Regions Visited (2) 400 Robots Destroyed (25) 125 Value Destroyed (516) 516 Prototype IDs (0) 0 Alien Tech Used (0) 0 Bonus (0) 0 TOTAL SCORE: 1041 Bonus ------- None Cogmind --------- Core Integrity 0/250 Matter 300/300 Energy 60/100 System Corruption 2% Temperature Cool (30) Movement Rolling (110) Ox2 Location -10/Mines Parts ------- > --- POWER (1) -------- Ion Engine > --- PROPULSION (2) --- Wheel > --- UTILITY (2) ------ Large Storage Unit Structural Scanner > --- WEAPON (2) ------- Particle Gun > --- INVENTORY (15) --- Aluminum Leg Aluminum Leg Aluminum Leg Wheel Wheel Wheel Wheel Heat Sink Heat Sink Sensor Array EM Pulse Gun EM Pulse Gun EM Pulse Gun EM Pulse Gun Peak State ------------ > --- POWER ------------ Ion Engine > --- PROPULSION ------- Wheel Wheel > --- UTILITY ---------- Heat Sink Large Storage Unit > --- WEAPON ----------- EM Pulse Gun Particle Gun > --- INVENTORY -------- Aluminum Leg Aluminum Leg Aluminum Leg Wheel Heat Sink EM Pulse Gun EM Pulse Gun EM Pulse Gun EM Pulse Gun EM Pulse Gun [Rating: 9] Favorites ----------- Power Ion Engine Engine Ion Engine Propulsion Wheel Treads Light Treads Leg Aluminum Leg Wheel Wheel Utility Large Storage Unit Device Heat Sink Storage Large Storage Unit Processor Signal Interpreter Weapon Particle Gun Energy Gun Particle Gun Ballistic Gun Assault Rifle Build | -11 -10 -10 ------- Run | Yrd Mat Min Slots Evolved . | . . . Power . | . . . Propulsion . | . . . Utility . | . . . Weapon . | . . . Parts Attached 26 | . 25 1 Power 3 | . 3 . Engine 3 | . 3 . Core . | . . . Reactor . | . . . Propulsion 10 | . 10 . Treads 2 | . 2 . Leg 4 | . 4 . Wheel 4 | . 4 . Hover . | . . . Flight . | . . . Utility 4 | . 3 1 Device 2 | . 1 1 Storage 1 | . 1 . Processor 1 | . 1 . Hackware . | . . . Protection . | . . . Artifact . | . . . Weapon 9 | . 9 . Energy Gun 8 | . 8 . Energy Cannon . | . . . Ballistic Gun 1 | . 1 . Ballistic Cannon . | . . . Launcher . | . . . Special Weapon . | . . . Impact Weapon . | . . . Slashing Weapon . | . . . Piercing Weapon . | . . . Special Melee Weapon . | . . . Unidentified Prototypes . | . . . Corrupted Parts 1 | . 1 . System Corruption 1 | . 1 . Parts Lost 10 | . 8 2 Power 3 | . 3 . Propulsion 2 | . 1 1 Utility . | . . . Weapon 5 | . 4 1 Highest Loss Streak 7 | . 7 2 To Critical Strikes . | . . . Average Backups 9 | 7 9 14 Power . | 1 . . Propulsion 4 | 4 4 7 Utility 1 | . 1 3 Weapon 3 | 2 3 4 Tool/Special . | . . . Unused Backups 10 | . 2 8 Power . | . . . Propulsion 3 | . . 3 Utility 4 | . 2 2 Weapon 3 | . . 3 Tool/Special . | . . . Average Slot Usage (%) 91 | . 90 100 Engine 13 | . 13 14 Treads 2 | . 2 . Leg 7 | . 8 . Wheel 17 | . 15 28 Device 9 | . 9 14 Storage 14 | . 14 14 Energy Gun 22 | . 22 28 Ballistic Gun 2 | . 2 . Peak Build Rating 9 | 5 9 9 Average Rating 7 | 5 7 8 On Entrance 6 | 6 5 9 Avg Prop Armor Cover (%) . | . . . Naked Turns . | . . . Heaviest Build 31 | 12 31 31 Greatest Support 40 | 20 40 20 Greatest Overweight (x) 1 | . 1 1 Average Overweight (x) . | . . 1 Largest Inventory Capacity 15 | 8 15 15 Average Capacity 12 | 8 12 15 Most Carried 14 | 7 14 14 Average Carried 9 | 6 9 14 Final Capacity 15 | 8 15 15 Final Carried 14 | 5 14 14 Class Distribution -------------------- 90% | Scavenger-Mutant 9% | Mutant Dominant Class ---------------- Scavenger-Mutant | -10/Materials Scavenger-Mutant | -10/Mines Resources | -11 -10 -10 ----------- Run | Yrd Mat Min Matter Collected 539 | 198 323 18 Remotely . | . . . Salvage Created 771 | . 700 71 Parts 54 | . 45 9 Haulers Intercepted . | . . . Recyclers Shooed . | . . . Parts Field Recycled . | . . . Retrieved Matter . | . . . Parts Self-Destructed . | . . . Prevented . | . . . Parts Restored . | . . . Kills | -11 -10 -10 ------- Run | Yrd Mat Min Combat Hostiles Destroyed 20 | . 17 3 Guns 17 | . 14 3 AOE 2 | . 2 . Classes Destroyed 5 | . 4 1 Worker 2 | . 2 . Builder 2 | . 2 . Tunneler 1 | . . 1 Swarmer 9 | . 6 3 Grunt 11 | . 11 . Best Kill Streak 8 | . 8 3 Combat Bots Only 7 | . 7 3 Max Kills in Single Turn 2 | . 2 2 Gunslinging 1 | . . 1 Exploded 1 | . 1 . Melee . | . . . Uniques/NPCs Destroyed . | . . . Combat | -11 -10 -10 -------- Run | Yrd Mat Min Hostile Shots Fired 147 | . 138 9 Missed 42 | . 41 1 Hits 105 | . 97 8 Projectile 105 | . 97 8 AOE 4 | . . 4 Damage Taken 1261 | . 1041 220 Core 271 | . 174 97 Absorbed by Shields . | . . . Core Remaining (%) 100 | 100 . . Volleys Fired 58 | . 53 5 Largest 2 | . 2 2 Hottest 105 | . 105 105 Shots Fired 99 | . 89 10 Gun 99 | . 89 10 Cannon . | . . . Launcher . | . . . Special . | . . . Kinetic 11 | . 11 . Thermal 36 | . 31 5 Explosive . | . . . Electromagnetic 52 | . 47 5 Robot Hit Streak 7 | . 7 6 Robot Miss Streak 4 | . 4 1 Penetration Max . | . . . Secondary Targets 4 | . 2 2 Max Gunslinging Chain 1 | . 1 1 Shots Hit Robots 56 | . 48 8 Core Hits 31 | . 26 5 Critical Kills . | . . . Critical Parts Destroyed . | . . . Critical Strikes 2 | . 2 . Burn 2 | . 2 . Melee Attacks . | . . . Impact . | . . . Slashing . | . . . Piercing . | . . . Sneak Attacks . | . . . Combat Hostiles . | . . . Follow-up Attacks . | . . . Damage Inflicted 1050 | . 936 114 Guns 844 | . 730 114 Cannons . | . . . Explosions 173 | . 173 . Melee . | . . . Ramming 33 | . 33 . Kinetic 85 | . 85 . Thermal 535 | . 468 67 Explosive . | . . . Electromagnetic 397 | . 350 47 Impact . | . . . Slashing . | . . . Piercing . | . . . Highest Corruption 2 | . 2 2 Average Corruption 1 | . 1 2 Corruption Purged . | . . . Corruption Blocked . | . . . Effects 7 | . 6 1 Message Errors 2 | . 2 . Matter Fused 1 | . 1 . Parts Rejected 1 | . 1 . Data Loss (minor) 1 | . 1 . Data Loss (major) 1 | . . 1 Weapon Failures 1 | . 1 . Overload Shots . | . . . Overflow Damage 16 | . 16 . Projectiles . | . . . Explosions 16 | . 16 . Melee . | . . . Knockbacks . | . . . Impact . | . . . Kinetic . | . . . Secondary . | . . . Self-Inflicted Damage 28 | . 28 . Shots . | . . . Rammed . | . . . Targets Rammed 2 | . 2 . Kicked 2 | . 2 . Crushed . | . . . Highest Temperature 102 | . 102 30 Average Temperature 33 | . 34 17 Received Heat Transfer 408 | . 408 . Siege Activations . | . . . Martial Activations . | . . . Shielding Activations . | . . . Robots Disrupted . | . . . Combat Hostiles . | . . . Robots Corrupted 1 | . 1 . Combat Hostiles 1 | . 1 . Parts Fried 1 | . 1 . Impact Corruptions . | . . . Robots Melted . | . . . Combat Hostiles . | . . . Parts Melted 2 | . 2 . Heat Transferred 1299 | . 1151 148 Parts Sabotaged . | . . . Parts Stolen . | . . . Parts Stripped . | . . . Power Chain Reactions 2 | . 2 . Alert | -11 -10 -10 ------- Run | Yrd Mat Min Maximum Alert Level . | . . . Low Security (%) 100 | 100 100 100 Level 1 . | . . . Level 2 . | . . . Level 3 . | . . . Level 4 . | . . . Level 5 . | . . . High Security . | . . . Max Security . | . . . Peak Influence 193 | . 193 123 Initial 47 | . . 47 Average 103 | . 104 98 Influence Increases 578 | . 497 81 Destroy 0b10 Robot/C 400 | . 340 60 Destroy 0b10 Robot/NC 25 | . 20 5 Destroy Leader 70 | . 60 10 Successful Hack 16 | . 10 6 Disable Machine 30 | . 30 . Destroy Structure 7 | . 7 . Lose Combat Pursuer 30 | . 30 . Influence Decreases 510 | . 374 136 Entered New Map 76 | . . 76 Time Decay 334 | . 294 40 Lost Part 100 | . 80 20 Squads Dispatched 5 | . 5 . Investigation 4 | . 4 . Extermination . | . . . Reinforcement 1 | . 1 . Assault . | . . . Garrison . | . . . Intercept . | . . . Searches Triggered . | . . . Construction Impeded . | . . . Haulers Reinforced . | . . . Active Scanning Responses . | . . . Cargo Convoy Interrupts . | . . . Stealth | -11 -10 -10 --------- Run | Yrd Mat Min Distress Signals 1 | . 1 . Communications Jammed . | . . . Distress Signals . | . . . Times Spotted 32 | . 27 5 Peak Tracking Total 8 | . 8 2 Tactical Retreats 2 | . 2 . Traps | -11 -10 -10 ------- Run | Yrd Mat Min Traps Triggered 3 | . 3 . Indirectly . | . . . Trap Hack Attempts . | . . . Triggered . | . . . Disarmed . | . . . Reprogrammed . | . . . Reused . | . . . Traps Extracted . | . . . Installed . | . . . Triggered . | . . . Machines | -11 -10 -10 ---------- Run | Yrd Mat Min Machines Disabled 2 | . 2 . Max in Single Turn 1 | . 1 . Machines Repaired . | . . . Machines Dismantled . | . . . Machines Sabotaged . | . . . Overloaded Fab Kills . | . . . Hacking | -11 -10 -10 --------- Run | Yrd Mat Min Machines Accessed 6 | . 5 1 Terminals 5 | . 4 1 Fabricators . | . . . Repair Stations . | . . . Recycling Units 1 | . 1 . Scanalyzers . | . . . Garrison Access . | . . . Total Hacks 26 | . 21 5 Successful 11 | . 7 4 Failed 15 | . 14 1 Catastrophic 2 | . 1 1 Database Lockouts . | . . . Manual 6 | . 3 3 Terminals 23 | . 18 5 Fabricators . | . . . Repair Stations . | . . . Recycling Units 3 | . 3 . Scanalyzers . | . . . Garrison Access . | . . . Terminal Hacks 7 | . 4 3 Robot Analysis 1 | . . 1 Terminal Index 1 | . 1 . Alert Level 1 | . . 1 Zone Layout 4 | . 3 1 Fabricator Hacks . | . . . Repair Station Hacks . | . . . Recycling Unit Hacks 3 | . 3 . Process 1 | . 1 . Report Inventory 1 | . 1 . Retrieve Matter 1 | . 1 . Scanalyzer . | . . . Garrison Access Hacks . | . . . Unauthorized Hacks 1 | . . 1 Terminals 1 | . . 1 Track 1 | . . 1 Fabricators . | . . . Repair Stations . | . . . Recycling Units . | . . . Scanalyzers . | . . . Garrison Access . | . . . Data Cores Recovered . | . . . Used . | . . . Hacking Detections 5 | . 4 1 Full Trace Events 3 | . 3 . Feedback Events . | . . . Feedback Blocked . | . . . Robot Schematics Acquired . | . . . Robots Built . | . . . Authchips . | . . . Time . | . . . Total Robot Build Rating . | . . . Part Schematics Acquired . | . . . Parts Built . | . . . Authchips . | . . . Time . | . . . Total Part Build Rating . | . . . Part Studies Acquired . | . . . Parts Repaired . | . . . Time . | . . . Parts Recycled . | . . . Recycled Matter 82 | . 82 . Retrieved Matter 82 | . 82 . Retrieved Components . | . . . Parts Scanalyzed . | . . . Part Schematics Acquired . | . . . Parts Damaged . | . . . Bothacking | -11 -10 -10 ------------ Run | Yrd Mat Min Used RIF Installer . | . . . Robots Hacked . | . . . Non-combat . | . . . Combat . | . . . Robot Hacks Applied . | . . . Relay Couplers Released . | . . . Fabnet Peak Effective % . | . . . Robots Rewired . | . . . Allies Hacked . | . . . Hacks Repelled . | . . . Allies | -11 -10 -10 -------- Run | Yrd Mat Min Total Allies . | . . . Largest Group . | . . . Highest-Rated Group . | . . . Highest-Rated Ally . | . . . Total Orders . | . . . Ally Attacks . | . . . Total Damage . | . . . Kills . | . . . Allies Corrupted . | . . . Allies Melted . | . . . Intel | -11 -10 -10 ------- Run | Yrd Mat Min Active Infowar (turns) 73 | . . 73 Structural 73 | . . 73 Robot Analysis Total 1 | . . 1 Derelict Logs Recovered 1 | . . 1 Drone Launches . | . . . Drone Recoveries . | . . . Exploration | -11 -10 -10 ------------- Run | Yrd Mat Min Turns Passed 837 | 2 740 95 Spaces Moved 582 | 1 496 85 Core . | . . . Treads 15 | . 15 . Legs 149 | 1 148 . Wheels 418 | . 333 85 Hover . | . . . Flight . | . . . Fastest Speed 95 | 120 95 95 Average Speed 104 | 120 106 95 Slowest Speed 190 | 120 190 95 Overloaded Moves . | . . . Propulsion Burnouts . | . . . Robots Hopped . | . . . Potential Cave-ins . | . . . Cave-ins Triggered . | . . . Exploration Rate (%) 32 | 3 65 29 Regions Visited 2 Branch Regions 1 Pre-discovered Areas . | . . . Known Exits Taken . | . . . Unknown Exits Taken 2 | 1 1 . Scrap Searched . | . . . Spaces Dug . | . . . Terrain Destroyed 6 | . 6 . Melee . | . . . Projectile . | . . . AOE 6 | . 6 . Terrain Rammed 1 | . 1 . Walls Destroyed . | . . . Machines Disabled 1 | . 1 . Actions | -11 -10 -10 --------- Run | Yrd Mat Min Total 701 | 3 607 91 Wait 3 | . 3 . Move 580 | . 495 85 Hop . | . . . Pick Up 11 | . 11 . Fast Attach 14 | . 14 . Attach 4 | . 4 . Detach 5 | 1 4 . Swap 16 | . 15 1 Drop 7 | 2 5 . Fire 58 | . 53 5 Melee . | . . . Ram 1 | . 1 . Kick 2 | . 2 . Crush . | . . . Escape Stasis . | . . . Rewire . | . . . Trap . | . . . Miscellaneous . | . . . Route ------- -11/Scrapyard -10/Materials (discovered 2 exits: *Mat / *Min) -10/Mines History --------- Turn | Location | Event 3 | -11/Scrapyard | Discovered new exit (range 0) 3 | -11/Scrapyard | Entered Materials 165 | -10/Materials | Core integrity fell below 50% 167 | -10/Materials | Destroyed 7 combat bots 197 | -10/Materials | Lost 7 parts (3p1n3w) 387 | -10/Materials | Build established: Scavenger-Mutant 418 | -10/Materials | Discovered new exit (range 7) 561 | -10/Materials | Identified exit to Materials 713 | -10/Materials | Discovered new exit (range 22) 743 | -10/Materials | Entered Mines 749 | -10/Mines | Learned Materials stockpile data 799 | -10/Mines | Assembled infested the area 838 | -10/Mines | Destroyed by D-53 Grenadier with Mini Grenade Launcher Last Messages --------------- Data stored: Materials stockpile data. 00750_ K-01 Serf collects debris. 00750_ S-10 Pest destroyed. 00750_ Switching to secondary target: S-10 Pest. 00753_ S-10 Pest destroyed. 00753_ Switching to secondary target: S-10 Pest. 00753_ S-10 Pest destroyed. 00754_ K-01 Serf collects debris. 00768_ System corrupted: Substantial component data lost. 00781_ Acquired 15 matter. 00782_ Acquired 3 matter. 00799_ ALERT: Infestation in the mines, dispatching Demolisher response squad. 00812_ T-07 Excavator destroyed. 00830_ The unstable cave ceiling collapses. 00831_ R-06 Scavenger collects Wheel. 00834_ R-06 Scavenger collects Med. Matter Pod. 00836_ Wheel destroyed. 00837_ The unstable cave ceiling collapses. 00838_ EM Pulse Gun destroyed. Map ----- +----------------------------------------------------+ | ???????????????????????????????######???# | | ??????????????????????????################# | | ???????????????????????##########[*######## | | ??????????????????????###### * k%[r | | ??????????????????????### *%##### #### | | ??????????????????????## ###### ###? | | ??????????????????????## ###### #### | | ??????????????????????### ###### #### | | ??????????????????????### ### ## | | ???????????????????????### ## | | ???????????????????????#### ## | | ?????????????????#####??### ## | | ????????????????#######??### ### # | | ????????????????## ###?#### #### | | ????????????????# ######## ######## | | ?????????????????? ####### |######### # | | ??????????????????? ######!%#####?###### | | ???????????????????# ### = ##???#### | | ???????????????????## """ ## ##??????? | | ???????????????###### """ #### ##??????? | | ??????????????####### """ #### ##??????? | | ?????????? #### ## """ ### ##??????? | | ??????????## ### ##??????? | | ??????????## #### ???? | | ?????????### #### ##? | | ?????????## % @ ##? | | ?????????#### # ? | | ??????????### # ###### ? | | ???????????## # ## ######? | | ???????????### ## #### ##???? | | ???????????### ## ##### ##???? | | ?????????## d ## ##?### ##???? | | ?????????## #### r d ## ###??## ###??? | | ????????# #### < * #########???? ##??? | | ????????## ???### ==###########????? ##?? | | ????????###??? ###%#####???????????? ##?? | | ??????????????? ##|????????????????? ###?? | | ???????????????????!??????????????????####?? | | ??????????????????? ???????????????????????? | | ??????????????????? ???????????????????????? | | ??????????????????? ???????????????????????? | | ???????????????????????????????????????????? | | ???????????????????????????????????????????? | | ???????????????????????????????????????????? | | ???????????????????????????????????????????? | | ???????????????????????????????????????????? | | ???????????????????????????????????????????? | | ???????????????????????????????????????????? | | ???????????????????????????????????????????? | | ???????????????????????????????????????????? | +----------------------------------------------------+ Best States ------------- Heat Dissipation 35 Energy Generation 10 Energy Capacity 250 Matter Stores 300 Matter Capacity 300 Sight Range 16 Terrain Scan Density 10 Evasion (%) 55 Recoil Reduction 2 Item Schematics ----------------- None Robot Schematics ------------------ None Fabricated ------------ Nothing Repaired ---------- Nothing Studied --------- None Alien Tech Used ----------------- None Achievements -------------- None Challenges ------------ None Game ------ Seed CoordinationJammingBasin Manual? 0 Play Time 00:06:37 Cumulative 1281.3 hours Start 2026.03.24 @ 15:58:50 End 2026.03.24 @ 16:04:48 Sessions 1 Manual Loads 0 Difficulty Rogue Special Mode None Game No. 1573 Rogue 1289 Adventurer 124 Explorer 160 Win Type - Total 63 Types 49/0/8/4/1/0/0/1/0/0 Lore% 93 Gallery% 83 Achievement% 69 Wizard Run 0 Options --------- Layout 0 ASCII 0 Keyboard 1 Movement Numpad Keybinds 0 Fullscreen 2 Font 18/X11 Map View 76x50 Zoom Use 0% Tactical HUD 1 Map Filters NONE Filters NONE Steam 1 RUN: baa2733d-393b-4472-9f37-e18982710e15